[Event "Titled Tuesday Blitz March 22 Early 2022"]
[White "Sarana, Alexey"]
[Black "Petrosyan, Manuel"]
[WhiteFideId "24133795"]
[BlackFideId "13300857"]
[WhiteElo "2666"]
[BlackElo "2592"]
[Result "1-0"]
[Round "05"]
[TimeControl "180+1"]
[Date "2022.03.22"]
[WhiteClock "0:00:19"]
[BlackClock "0:00:02"]

1. d4 {[%clk 0:02:55]}  Nf6 {[%clk 0:02:20]} 2. c4 {[%clk 0:02:53]}  e6 {[%clk 0:02:21]} 3. Nc3 {[%clk 0:02:54]}  Bb4 {[%clk 0:02:21]} 4. e3 {[%clk 0:02:55]}  O-O {[%clk 0:02:19]} 5. Bd3 {[%clk 0:02:55]}  d5 {[%clk 0:02:18]} 6. a3 {[%clk 0:02:55]}  Bxc3+ {[%clk 0:02:17]} 7. bxc3 {[%clk 0:02:56]}  dxc4 {[%clk 0:02:17]} 8. Bxc4 {[%clk 0:02:56]}  c5 {[%clk 0:02:18]} 9. Ne2 {[%clk 0:02:57]}  Qc7 {[%clk 0:02:16]} 10. Bd3 {[%clk 0:02:58]}  b6 {[%clk 0:02:16]} 11. e4 {[%clk 0:02:58]}  Ba6 {[%clk 0:02:13]} 12. O-O {[%clk 0:02:56]}  Bxd3 {[%clk 0:02:09]} 13. Qxd3 {[%clk 0:02:57]}  Nc6 {[%clk 0:02:02]} 14. Bg5 {[%clk 0:02:56]}  Nd7 {[%clk 0:01:53]} 15. Rad1 {[%clk 0:02:55]}  cxd4 {[%clk 0:01:52]} 16. cxd4 {[%clk 0:02:55]}  Rac8 {[%clk 0:01:50]} 17. d5 {[%clk 0:02:32]}  exd5 {[%clk 0:01:48]} 18. exd5 {[%clk 0:02:33]}  Nce5 {[%clk 0:01:45]} 19. Qg3 {[%clk 0:02:33]}  Ng6 {[%clk 0:01:37]} 20. d6 {[%clk 0:02:32]}  Qc5 {[%clk 0:01:30]} 21. Nd4 {[%clk 0:02:31]}  Rfe8 {[%clk 0:01:16]} 22. Qh3 {[%clk 0:01:42]}  Qxg5 {[%clk 0:01:12]} 23. Qxd7 {[%clk 0:01:40]}  Red8 {[%clk 0:01:00]} 24. Qb7 {[%clk 0:01:37]}  Qc5 {[%clk 0:00:49]} 25. Nf3 {[%clk 0:00:51]}  a5 {[%clk 0:00:33]} 26. Rfe1 {[%clk 0:00:48]}  Qc6 {[%clk 0:00:26]} 27. Qxc6 {[%clk 0:00:39]}  Rxc6 {[%clk 0:00:26]} 28. d7 {[%clk 0:00:40]}  Re6 {[%clk 0:00:16]} 29. Rxe6 {[%clk 0:00:35]}  fxe6 {[%clk 0:00:17]} 30. Rd6 {[%clk 0:00:36]}  Kf7 {[%clk 0:00:12]} 31. Ng5+ {[%clk 0:00:24]}  Ke7 {[%clk 0:00:09]} 32. Rxb6 {[%clk 0:00:21]}  Nf8 {[%clk 0:00:06]} 33. Ra6 {[%clk 0:00:20]}  Rxd7 {[%clk 0:00:07]} 34. h4 {[%clk 0:00:20]}  Rd5 {[%clk 0:00:06]} 35. Ra7+ {[%clk 0:00:21]}  Ke8 {[%clk 0:00:04]} 36. Rxg7 {[%clk 0:00:19]}  h6 {[%clk 0:00:04]} 37. Ne4 {[%clk 0:00:19]}  Rd4 {[%clk 0:00:04]} 38. Nf6+ {[%clk 0:00:20]}  Kd8 {[%clk 0:00:04]} 39. h5 {[%clk 0:00:20]}  Rd3 {[%clk 0:00:02]} 40. Rf7 {[%clk 0:00:17]}  Rxa3 {[%clk 0:00:02]} 41. Rxf8+ {[%clk 0:00:17]}  Ke7 {[%clk 0:00:02]} 42. Nh7 {[%clk 0:00:18]}  a4 {[%clk 0:00:02]} 43. Ra8 {[%clk 0:00:18]}  Ra1+ {[%clk 0:00:02]} 44. Kh2 {[%clk 0:00:18]}  a3 {[%clk 0:00:03]} 45. Ra7+ {[%clk 0:00:18]}  Kd6 {[%clk 0:00:04]} 46. Nf6 {[%clk 0:00:19]}  Kc5 {[%clk 0:00:04]} 47. g4 {[%clk 0:00:18]}  Kb4 {[%clk 0:00:04]} 48. g5 {[%clk 0:00:18]}  hxg5 {[%clk 0:00:04]} 49. h6 {[%clk 0:00:18]}  Rd1 {[%clk 0:00:02]} 50. h7 {[%clk 0:00:18]}  Rd8 {[%clk 0:00:02]} 51. Ng8 {[%clk 0:00:19]} 1-0


[Site "https://www.chess.com"]

[Event "Titled Tuesday Blitz March 22 Early 2022"]
[White "Siniauski, Artsiom"]
[Black "Golsta, Madara"]
[WhiteFideId "13512269"]
[BlackFideId "11607386"]
[WhiteElo "2187"]
[BlackElo "1997"]
[Result "1-0"]
[Round "05"]
[TimeControl "180+1"]
[Date "2022.03.22"]
[WhiteClock "0:00:24"]
[BlackClock "0:00:04"]

1. e4 {[%clk 0:03:00]}  c5 {[%clk 0:02:59]} 2. Nf3 {[%clk 0:02:55]}  d6 {[%clk 0:02:59]} 3. c3 {[%clk 0:02:51]}  Nf6 {[%clk 0:02:58]} 4. Be2 {[%clk 0:02:49]}  Bd7 {[%clk 0:02:56]} 5. Qc2 {[%clk 0:02:48]}  Bc6 {[%clk 0:02:56]} 6. d3 {[%clk 0:02:46]}  g6 {[%clk 0:02:56]} 7. O-O {[%clk 0:02:45]}  Bg7 {[%clk 0:02:55]} 8. h3 {[%clk 0:02:42]}  O-O {[%clk 0:02:54]} 9. Bf4 {[%clk 0:02:42]}  Nbd7 {[%clk 0:02:51]} 10. Nbd2 {[%clk 0:02:42]}  Rc8 {[%clk 0:02:49]} 11. Rfe1 {[%clk 0:02:41]}  b5 {[%clk 0:02:45]} 12. Bf1 {[%clk 0:02:40]}  a5 {[%clk 0:02:39]} 13. Rad1 {[%clk 0:02:37]}  Nb6 {[%clk 0:02:32]} 14. Qb1 {[%clk 0:02:31]}  b4 {[%clk 0:02:22]} 15. d4 {[%clk 0:02:27]}  Ba4 {[%clk 0:01:34]} 16. b3 {[%clk 0:02:05]}  bxc3 {[%clk 0:01:33]} 17. Nc4 {[%clk 0:02:05]}  Nxc4 {[%clk 0:01:26]} 18. Bxc4 {[%clk 0:02:06]}  Bd7 {[%clk 0:01:22]} 19. e5 {[%clk 0:02:02]}  Ne8 {[%clk 0:01:21]} 20. Ng5 {[%clk 0:01:44]}  Bf5 {[%clk 0:01:20]} 21. Qc1 {[%clk 0:01:39]}  d5 {[%clk 0:01:14]} 22. dxc5 {[%clk 0:01:34]}  Rxc5 {[%clk 0:01:14]} 23. g4 {[%clk 0:01:26]}  Be6 {[%clk 0:01:02]} 24. Be3 {[%clk 0:01:11]}  Rc7 {[%clk 0:00:49]} 25. Bb6 {[%clk 0:01:08]}  Qc8 {[%clk 0:00:43]} 26. Bxc7 {[%clk 0:01:07]}  dxc4 {[%clk 0:00:43]} 27. Bxa5 {[%clk 0:01:03]}  cxb3 {[%clk 0:00:43]} 28. axb3 {[%clk 0:01:02]}  Bxb3 {[%clk 0:00:43]} 29. Rd8 {[%clk 0:01:00]}  Qc5 {[%clk 0:00:36]} 30. Qxc3 {[%clk 0:00:58]}  Qxc3 {[%clk 0:00:26]} 31. Bxc3 {[%clk 0:00:59]}  Nc7 {[%clk 0:00:24]} 32. Rxf8+ {[%clk 0:00:57]}  Bxf8 {[%clk 0:00:24]} 33. Rb1 {[%clk 0:00:57]}  Bd5 {[%clk 0:00:16]} 34. Rb8 {[%clk 0:00:53]}  h6 {[%clk 0:00:15]} 35. Nh7 {[%clk 0:00:48]}  Kxh7 {[%clk 0:00:15]} 36. Rxf8 {[%clk 0:00:49]}  Ne6 {[%clk 0:00:14]} 37. Re8 {[%clk 0:00:47]}  Nf4 {[%clk 0:00:12]} 38. Kh2 {[%clk 0:00:41]}  e6 {[%clk 0:00:12]} 39. Bb4 {[%clk 0:00:38]}  Be4 {[%clk 0:00:05]} 40. Be7 {[%clk 0:00:35]}  Nd5 {[%clk 0:00:05]} 41. Kg3 {[%clk 0:00:30]}  g5 {[%clk 0:00:04]} 42. h4 {[%clk 0:00:29]}  Kg6 {[%clk 0:00:05]} 43. h5+ {[%clk 0:00:29]}  Kh7 {[%clk 0:00:05]} 44. Bf6 {[%clk 0:00:24]}  Nxf6 {[%clk 0:00:04]} 45. exf6 {[%clk 0:00:24]} 1-0


[Site "https://www.chess.com"]

[Event "Titled Tuesday Blitz March 22 Early 2022"]
[White "Smirnov, Pavel"]
[Black "Sztokbant, Bernardo Vainzoff"]
[WhiteFideId "4123425"]
[BlackFideId "2115956"]
[WhiteElo "2545"]
[BlackElo "2237"]
[Result "1-0"]
[Round "05"]
[TimeControl "180+1"]
[Date "2022.03.22"]
[WhiteClock "0:00:22"]
[BlackClock "0:00:01"]

1. d4 {[%clk 0:02:54]}  d5 {[%clk 0:02:59]} 2. c4 {[%clk 0:02:53]}  dxc4 {[%clk 0:02:59]} 3. e3 {[%clk 0:02:53]}  Nf6 {[%clk 0:02:56]} 4. Bxc4 {[%clk 0:02:53]}  e6 {[%clk 0:02:57]} 5. Nf3 {[%clk 0:02:53]}  c5 {[%clk 0:02:57]} 6. O-O {[%clk 0:02:52]}  Be7 {[%clk 0:02:56]} 7. Nc3 {[%clk 0:02:52]}  O-O {[%clk 0:02:56]} 8. Qe2 {[%clk 0:02:51]}  Nc6 {[%clk 0:02:53]} 9. Rd1 {[%clk 0:02:50]}  Bd7 {[%clk 0:02:39]} 10. Ne5 {[%clk 0:02:39]}  cxd4 {[%clk 0:02:30]} 11. exd4 {[%clk 0:02:33]}  Rc8 {[%clk 0:02:26]} 12. Nxd7 {[%clk 0:02:26]}  Qxd7 {[%clk 0:02:21]} 13. d5 {[%clk 0:02:26]}  exd5 {[%clk 0:02:17]} 14. Nxd5 {[%clk 0:02:25]}  Nxd5 {[%clk 0:02:14]} 15. Bxd5 {[%clk 0:02:23]}  Bf6 {[%clk 0:02:07]} 16. Be3 {[%clk 0:02:18]}  Rfe8 {[%clk 0:02:01]} 17. Qf3 {[%clk 0:01:37]}  Ne5 {[%clk 0:01:35]} 18. Qf4 {[%clk 0:01:33]}  Qb5 {[%clk 0:01:30]} 19. a4 {[%clk 0:01:23]}  Qxb2 {[%clk 0:01:08]} 20. Rab1 {[%clk 0:01:21]}  Qc2 {[%clk 0:00:47]} 21. Bxa7 {[%clk 0:01:11]}  Nd3 {[%clk 0:00:34]} 22. Qf5 {[%clk 0:01:04]}  Ne1 {[%clk 0:00:07]} 23. Qxc2 {[%clk 0:00:57]}  Nxc2 {[%clk 0:00:08]} 24. Rxb7 {[%clk 0:00:52]}  Re7 {[%clk 0:00:07]} 25. a5 {[%clk 0:00:43]}  Rd8 {[%clk 0:00:05]} 26. Rxe7 {[%clk 0:00:38]}  Bxe7 {[%clk 0:00:06]} 27. Bb6 {[%clk 0:00:38]}  Rd6 {[%clk 0:00:04]} 28. Bf3 {[%clk 0:00:28]}  Rxd1+ {[%clk 0:00:03]} 29. Bxd1 {[%clk 0:00:28]}  Nb4 {[%clk 0:00:04]} 30. Be2 {[%clk 0:00:26]}  Nd5 {[%clk 0:00:04]} 31. Bd4 {[%clk 0:00:24]}  Bd8 {[%clk 0:00:01]} 32. a6 {[%clk 0:00:23]}  Bb6 {[%clk 0:00:01]} 33. Bxb6 {[%clk 0:00:23]}  Nxb6 {[%clk 0:00:01]} 34. a7 {[%clk 0:00:23]}  Nc8 {[%clk 0:00:01]} 35. a8=Q {[%clk 0:00:22]} 1-0


[Site "https://www.chess.com"]

[Event "Titled Tuesday Blitz March 22 Early 2022"]
[White "Urazayev, Arystanbek"]
[Black "Starozhilov, Leonid"]
[WhiteFideId "13709810"]
[BlackFideId "14106752"]
[WhiteElo "2393"]
[BlackElo "2414"]
[Result "1-0"]
[Round "05"]
[TimeControl "180+1"]
[Date "2022.03.22"]
[WhiteClock "0:01:46"]
[BlackClock "0:00:08"]

1. e4 {[%clk 0:03:00]}  d6 {[%clk 0:02:56]} 2. d4 {[%clk 0:03:01]}  Nf6 {[%clk 0:02:56]} 3. Nc3 {[%clk 0:03:01]}  e5 {[%clk 0:02:57]} 4. Nge2 {[%clk 0:03:01]}  Be7 {[%clk 0:02:50]} 5. f3 {[%clk 0:03:01]}  c6 {[%clk 0:02:45]} 6. Be3 {[%clk 0:03:01]}  b5 {[%clk 0:02:42]} 7. Qd2 {[%clk 0:03:01]}  Nbd7 {[%clk 0:02:17]} 8. a3 {[%clk 0:03:01]}  Nb6 {[%clk 0:02:07]} 9. b3 {[%clk 0:02:55]}  O-O {[%clk 0:02:03]} 10. g4 {[%clk 0:02:50]}  Nfd7 {[%clk 0:02:00]} 11. Ng3 {[%clk 0:02:42]}  exd4 {[%clk 0:01:57]} 12. Bxd4 {[%clk 0:02:43]}  Ne5 {[%clk 0:01:57]} 13. Be2 {[%clk 0:02:43]}  a6 {[%clk 0:01:45]} 14. Be3 {[%clk 0:02:41]}  a5 {[%clk 0:01:30]} 15. O-O {[%clk 0:02:32]}  b4 {[%clk 0:01:13]} 16. axb4 {[%clk 0:02:32]}  axb4 {[%clk 0:01:14]} 17. Na4 {[%clk 0:02:33]}  Nxa4 {[%clk 0:01:08]} 18. bxa4 {[%clk 0:02:34]}  Ba6 {[%clk 0:00:50]} 19. Bxa6 {[%clk 0:02:29]}  Rxa6 {[%clk 0:00:51]} 20. Nf5 {[%clk 0:02:26]}  c5 {[%clk 0:00:42]} 21. Qe2 {[%clk 0:02:23]}  Ra5 {[%clk 0:00:38]} 22. Rfd1 {[%clk 0:02:08]}  Re8 {[%clk 0:00:39]} 23. f4 {[%clk 0:01:54]}  Ng6 {[%clk 0:00:35]} 24. e5 {[%clk 0:01:53]}  Bf8 {[%clk 0:00:26]} 25. Nxd6 {[%clk 0:01:50]}  Bxd6 {[%clk 0:00:24]} 26. Rxd6 {[%clk 0:01:51]}  Qa8 {[%clk 0:00:23]} 27. Qg2 {[%clk 0:01:49]}  Qa7 {[%clk 0:00:11]} 28. Qc6 {[%clk 0:01:46]}  h6 {[%clk 0:00:08]} 29. Qxe8+ {[%clk 0:01:46]} 1-0


[Site "https://www.chess.com"]

[Event "Titled Tuesday Blitz March 22 Early 2022"]
[White "Vasquez Schroeder, Rodrigo"]
[Black "Mikhailovsky, Vladimir"]
[WhiteFideId "3400042"]
[BlackFideId "34105414"]
[WhiteElo "2561"]
[BlackElo "2371"]
[Result "1-0"]
[Round "05"]
[TimeControl "180+1"]
[Date "2022.03.22"]
[WhiteClock "0:01:10"]
[BlackClock "0:00:02"]

1. e4 {[%clk 0:03:00]}  Nf6 {[%clk 0:02:53]} 2. e5 {[%clk 0:03:00]}  Nd5 {[%clk 0:02:54]} 3. d4 {[%clk 0:03:01]}  d6 {[%clk 0:02:54]} 4. Nf3 {[%clk 0:03:01]}  dxe5 {[%clk 0:02:54]} 5. Nxe5 {[%clk 0:03:01]}  c6 {[%clk 0:02:55]} 6. Bd3 {[%clk 0:03:01]}  Nd7 {[%clk 0:02:48]} 7. Nxd7 {[%clk 0:03:01]}  Bxd7 {[%clk 0:02:48]} 8. O-O {[%clk 0:02:57]}  g6 {[%clk 0:02:46]} 9. c4 {[%clk 0:02:55]}  Nc7 {[%clk 0:02:35]} 10. Be3 {[%clk 0:02:53]}  Bg7 {[%clk 0:02:36]} 11. Nc3 {[%clk 0:02:53]}  O-O {[%clk 0:02:36]} 12. Be2 {[%clk 0:02:51]}  Bf5 {[%clk 0:02:34]} 13. Qb3 {[%clk 0:02:47]}  Bxd4 {[%clk 0:01:58]} 14. Bxd4 {[%clk 0:02:44]}  Qxd4 {[%clk 0:01:58]} 15. Qxb7 {[%clk 0:02:43]}  Rfc8 {[%clk 0:01:40]} 16. Qxc6 {[%clk 0:02:38]}  Rab8 {[%clk 0:01:38]} 17. Rad1 {[%clk 0:02:34]}  Qe5 {[%clk 0:01:37]} 18. Rd2 {[%clk 0:02:31]}  Qf4 {[%clk 0:00:58]} 19. Rfd1 {[%clk 0:02:13]}  Nb5 {[%clk 0:00:45]} 20. cxb5 {[%clk 0:01:54]}  Rxc6 {[%clk 0:00:45]} 21. bxc6 {[%clk 0:01:55]}  Kg7 {[%clk 0:00:43]} 22. g3 {[%clk 0:01:53]}  Qe5 {[%clk 0:00:36]} 23. Bf3 {[%clk 0:01:54]}  Rxb2 {[%clk 0:00:19]} 24. Rxb2 {[%clk 0:01:50]}  Qxc3 {[%clk 0:00:19]} 25. Rb3 {[%clk 0:01:47]}  Qc2 {[%clk 0:00:20]} 26. Re1 {[%clk 0:01:39]}  Be6 {[%clk 0:00:11]} 27. Rxe6 {[%clk 0:01:34]}  fxe6 {[%clk 0:00:10]} 28. Rb7 {[%clk 0:01:34]}  Qxa2 {[%clk 0:00:07]} 29. c7 {[%clk 0:01:32]}  Qc4 {[%clk 0:00:04]} 30. Rxa7 {[%clk 0:01:31]}  Kf6 {[%clk 0:00:04]} 31. h4 {[%clk 0:01:23]}  Qc1+ {[%clk 0:00:04]} 32. Kg2 {[%clk 0:01:22]}  Qc5 {[%clk 0:00:05]} 33. Be2 {[%clk 0:01:15]}  Qc6+ {[%clk 0:00:02]} 34. Kg1 {[%clk 0:01:14]}  Qc1+ {[%clk 0:00:02]} 35. Kg2 {[%clk 0:01:14]}  Qc6+ {[%clk 0:00:02]} 36. Bf3 {[%clk 0:01:15]}  Qc4 {[%clk 0:00:02]} 37. Rb7 {[%clk 0:01:14]}  e5 {[%clk 0:00:02]} 38. Rb6+ {[%clk 0:01:11]}  e6 {[%clk 0:00:01]} 39. Rc6 {[%clk 0:01:11]}  Qd3 {[%clk 0:00:01]} 40. c8=Q {[%clk 0:01:11]}  e4 {[%clk 0:00:02]} 41. Qh8+ {[%clk 0:01:10]}  Kf5 {[%clk 0:00:02]} 42. g4+ {[%clk 0:01:09]}  Kf4 {[%clk 0:00:02]} 43. Qf6# {[%clk 0:01:10]} 1-0


[Site "https://www.chess.com"]

[Event "Titled Tuesday Blitz March 22 Early 2022"]
[White "Vine, Elzbieta"]
[Black "Popadic, Dragan"]
[WhiteFideId "1119320"]
[BlackFideId "913650"]
[WhiteElo "1828"]
[BlackElo "2222"]
[Result "0-1"]
[Round "05"]
[TimeControl "180+1"]
[Date "2022.03.22"]
[WhiteClock "0:00:12"]
[BlackClock "0:01:43"]

1. e4 {[%clk 0:02:58]}  c5 {[%clk 0:02:59]} 2. Nf3 {[%clk 0:02:42]}  Nc6 {[%clk 0:02:58]} 3. d4 {[%clk 0:02:40]}  cxd4 {[%clk 0:02:58]} 4. Nxd4 {[%clk 0:02:40]}  Nf6 {[%clk 0:02:58]} 5. Nc3 {[%clk 0:02:39]}  e5 {[%clk 0:02:57]} 6. Ndb5 {[%clk 0:02:38]}  d6 {[%clk 0:02:56]} 7. Bg5 {[%clk 0:02:36]}  a6 {[%clk 0:02:56]} 8. Na3 {[%clk 0:02:36]}  b5 {[%clk 0:02:55]} 9. Nd5 {[%clk 0:02:35]}  Be7 {[%clk 0:02:55]} 10. Bxf6 {[%clk 0:02:14]}  Bxf6 {[%clk 0:02:55]} 11. c4 {[%clk 0:02:08]}  b4 {[%clk 0:02:54]} 12. Nc2 {[%clk 0:02:06]}  O-O {[%clk 0:02:54]} 13. Bd3 {[%clk 0:01:59]}  Rb8 {[%clk 0:02:52]} 14. O-O {[%clk 0:01:54]}  b3 {[%clk 0:02:51]} 15. Nce3 {[%clk 0:01:46]}  Nd4 {[%clk 0:02:45]} 16. Nf5 {[%clk 0:01:28]}  Bxf5 {[%clk 0:02:31]} 17. exf5 {[%clk 0:01:21]}  a5 {[%clk 0:02:25]} 18. axb3 {[%clk 0:01:17]}  Rxb3 {[%clk 0:02:21]} 19. Nxf6+ {[%clk 0:01:05]}  Qxf6 {[%clk 0:02:18]} 20. Rxa5 {[%clk 0:01:04]}  Rxb2 {[%clk 0:02:16]} 21. Qa1 {[%clk 0:00:41]}  Rd2 {[%clk 0:02:08]} 22. Be4 {[%clk 0:00:34]}  Qh4 {[%clk 0:01:56]} 23. Ra2 {[%clk 0:00:23]}  Rxa2 {[%clk 0:01:52]} 24. Qxa2 {[%clk 0:00:22]}  Qxe4 {[%clk 0:01:52]} 25. f6 {[%clk 0:00:17]}  gxf6 {[%clk 0:01:48]} 26. Qd2 {[%clk 0:00:15]}  Qg6 {[%clk 0:01:44]} 27. Re1 {[%clk 0:00:12]}  Nf3+ {[%clk 0:01:43]} 0-1


[Site "https://www.chess.com"]

[Event "Titled Tuesday Blitz March 22 Early 2022"]
[White "Vishnu, Prasanna. V"]
[Black "Zhigalko, Sergei"]
[WhiteFideId "5030692"]
[BlackFideId "13502956"]
[WhiteElo "2510"]
[BlackElo "2662"]
[Result "0-1"]
[Round "05"]
[TimeControl "180+1"]
[Date "2022.03.22"]
[WhiteClock "0:00:26"]
[BlackClock "0:00:04"]

1. e4 {[%clk 0:03:00]}  c5 {[%clk 0:02:59]} 2. Nf3 {[%clk 0:03:00]}  Nc6 {[%clk 0:02:59]} 3. d4 {[%clk 0:02:57]}  cxd4 {[%clk 0:03:00]} 4. Nxd4 {[%clk 0:02:58]}  Nf6 {[%clk 0:03:01]} 5. Nc3 {[%clk 0:02:58]}  e5 {[%clk 0:03:00]} 6. Ndb5 {[%clk 0:02:59]}  d6 {[%clk 0:03:00]} 7. Bg5 {[%clk 0:02:55]}  a6 {[%clk 0:03:00]} 8. Na3 {[%clk 0:02:56]}  b5 {[%clk 0:03:00]} 9. Nd5 {[%clk 0:02:56]}  Be7 {[%clk 0:03:01]} 10. Bxf6 {[%clk 0:02:57]}  Bxf6 {[%clk 0:03:02]} 11. c4 {[%clk 0:02:57]}  b4 {[%clk 0:03:02]} 12. Nc2 {[%clk 0:02:58]}  O-O {[%clk 0:03:02]} 13. g3 {[%clk 0:02:58]}  a5 {[%clk 0:03:01]} 14. Qd3 {[%clk 0:02:57]}  Bg5 {[%clk 0:02:58]} 15. h4 {[%clk 0:02:56]}  Bh6 {[%clk 0:02:58]} 16. Bh3 {[%clk 0:02:57]}  Be6 {[%clk 0:02:53]} 17. Kf1 {[%clk 0:02:56]}  Rb8 {[%clk 0:02:49]} 18. b3 {[%clk 0:02:49]}  Qd7 {[%clk 0:02:45]} 19. Kg2 {[%clk 0:02:48]}  Kh8 {[%clk 0:02:42]} 20. Rad1 {[%clk 0:02:16]}  Qa7 {[%clk 0:02:31]} 21. Nce3 {[%clk 0:02:05]}  Bxe3 {[%clk 0:02:25]} 22. Nxe3 {[%clk 0:02:05]}  Rbd8 {[%clk 0:02:20]} 23. h5 {[%clk 0:02:04]}  h6 {[%clk 0:02:18]} 24. f4 {[%clk 0:01:42]}  Bxh3+ {[%clk 0:01:57]} 25. Rxh3 {[%clk 0:01:43]}  Nd4 {[%clk 0:01:56]} 26. Nd5 {[%clk 0:01:32]}  a4 {[%clk 0:01:52]} 27. g4 {[%clk 0:01:24]}  axb3 {[%clk 0:01:50]} 28. axb3 {[%clk 0:01:24]}  Ra8 {[%clk 0:01:32]} 29. g5 {[%clk 0:01:14]}  Qa2+ {[%clk 0:00:37]} 30. Rd2 {[%clk 0:01:13]}  Qa1 {[%clk 0:00:38]} 31. gxh6 {[%clk 0:01:12]}  gxh6 {[%clk 0:00:37]} 32. f5 {[%clk 0:01:12]}  Rg8+ {[%clk 0:00:37]} 33. Rg3 {[%clk 0:01:12]}  Rxg3+ {[%clk 0:00:35]} 34. Kxg3 {[%clk 0:01:12]}  Rg8+ {[%clk 0:00:28]} 35. Kh3 {[%clk 0:01:12]}  Qg1 {[%clk 0:00:21]} 36. Nf6 {[%clk 0:01:07]}  Rg5 {[%clk 0:00:14]} 37. Ra2 {[%clk 0:00:58]}  Qh1+ {[%clk 0:00:14]} 38. Rh2 {[%clk 0:00:57]}  Qe1 {[%clk 0:00:09]} 39. Rg2 {[%clk 0:00:52]}  Qh1+ {[%clk 0:00:08]} 40. Rh2 {[%clk 0:00:52]}  Qe1 {[%clk 0:00:05]} 41. Rg2 {[%clk 0:00:44]}  Qc3 {[%clk 0:00:04]} 42. Rd2 {[%clk 0:00:35]}  Kg7 {[%clk 0:00:04]} 43. Ne8+ {[%clk 0:00:34]}  Kf8 {[%clk 0:00:03]} 44. Nxd6 {[%clk 0:00:35]}  Qc1 {[%clk 0:00:03]} 45. c5 {[%clk 0:00:27]}  Qh1+ {[%clk 0:00:03]} 46. Rh2 {[%clk 0:00:27]}  Rxh5+ {[%clk 0:00:03]} 47. Kg4 {[%clk 0:00:28]}  Qxh2 {[%clk 0:00:03]} 48. Qg3 {[%clk 0:00:26]}  Rg5# {[%clk 0:00:04]} 0-1


[Site "https://www.chess.com"]

[Event "Titled Tuesday Blitz March 22 Early 2022"]
[White "Vogel, Roven"]
[Black "Kollars, Dmitrij"]
[WhiteFideId "12908088"]
[BlackFideId "12909572"]
[WhiteElo "2516"]
[BlackElo "2584"]
[Result "1/2-1/2"]
[Round "05"]
[TimeControl "180+1"]
[Date "2022.03.22"]
[WhiteClock "0:01:18"]
[BlackClock "0:00:28"]

1. Nf3 {[%clk 0:02:52]}  d5 {[%clk 0:01:59]} 2. d4 {[%clk 0:02:51]}  Nf6 {[%clk 0:01:59]} 3. c4 {[%clk 0:02:51]}  e6 {[%clk 0:01:59]} 4. Nc3 {[%clk 0:02:51]}  a6 {[%clk 0:01:56]} 5. cxd5 {[%clk 0:02:51]}  exd5 {[%clk 0:01:57]} 6. Bg5 {[%clk 0:02:51]}  Be6 {[%clk 0:01:56]} 7. e3 {[%clk 0:02:52]}  Nbd7 {[%clk 0:01:55]} 8. Bd3 {[%clk 0:02:52]}  Bd6 {[%clk 0:01:49]} 9. h3 {[%clk 0:02:52]}  c6 {[%clk 0:01:49]} 10. Bf4 {[%clk 0:02:52]}  Qc7 {[%clk 0:01:48]} 11. Qd2 {[%clk 0:02:52]}  O-O {[%clk 0:01:49]} 12. O-O {[%clk 0:02:52]}  Rfe8 {[%clk 0:01:49]} 13. Ng5 {[%clk 0:02:52]}  h6 {[%clk 0:01:43]} 14. Nxe6 {[%clk 0:02:52]}  Rxe6 {[%clk 0:01:44]} 15. Bf5 {[%clk 0:02:49]}  Re7 {[%clk 0:01:42]} 16. Bxd6 {[%clk 0:02:41]}  Qxd6 {[%clk 0:01:43]} 17. Rac1 {[%clk 0:02:40]}  a5 {[%clk 0:01:38]} 18. Na4 {[%clk 0:02:37]}  g6 {[%clk 0:01:36]} 19. Bd3 {[%clk 0:02:37]}  Kg7 {[%clk 0:01:35]} 20. Nc5 {[%clk 0:02:35]}  Nxc5 {[%clk 0:01:34]} 21. Rxc5 {[%clk 0:02:36]}  b6 {[%clk 0:01:30]} 22. Rc2 {[%clk 0:02:34]}  c5 {[%clk 0:01:30]} 23. dxc5 {[%clk 0:02:33]}  bxc5 {[%clk 0:01:31]} 24. b3 {[%clk 0:02:33]}  a4 {[%clk 0:01:29]} 25. Rfc1 {[%clk 0:02:32]}  axb3 {[%clk 0:01:30]} 26. axb3 {[%clk 0:02:33]}  Nd7 {[%clk 0:01:16]} 27. Bb5 {[%clk 0:02:32]}  Rc8 {[%clk 0:01:14]} 28. Bxd7 {[%clk 0:02:31]}  Rxd7 {[%clk 0:01:14]} 29. Rxc5 {[%clk 0:02:31]}  Rxc5 {[%clk 0:01:11]} 30. Qd4+ {[%clk 0:02:31]}  Qf6 {[%clk 0:01:11]} 31. Qxf6+ {[%clk 0:02:13]}  Kxf6 {[%clk 0:01:12]} 32. Rxc5 {[%clk 0:02:14]}  d4 {[%clk 0:01:13]} 33. exd4 {[%clk 0:02:02]}  Rxd4 {[%clk 0:01:14]} 34. Rb5 {[%clk 0:02:03]}  Rd1+ {[%clk 0:01:05]} 35. Kh2 {[%clk 0:02:03]}  Rb1 {[%clk 0:01:06]} 36. g4 {[%clk 0:02:01]}  g5 {[%clk 0:01:01]} 37. Rb6+ {[%clk 0:01:59]}  Kg7 {[%clk 0:01:02]} 38. Kg3 {[%clk 0:01:58]}  f6 {[%clk 0:01:01]} 39. Kf3 {[%clk 0:01:49]}  Kg6 {[%clk 0:00:58]} 40. Rb7 {[%clk 0:01:45]}  h5 {[%clk 0:00:55]} 41. gxh5+ {[%clk 0:01:39]}  Kxh5 {[%clk 0:00:55]} 42. b4 {[%clk 0:01:36]}  Kg6 {[%clk 0:00:53]} 43. b5 {[%clk 0:01:34]}  Kf5 {[%clk 0:00:44]} 44. Rb8 {[%clk 0:01:32]}  Rb3+ {[%clk 0:00:43]} 45. Kg2 {[%clk 0:01:32]}  Kf4 {[%clk 0:00:38]} 46. b6 {[%clk 0:01:32]}  f5 {[%clk 0:00:37]} 47. b7 {[%clk 0:01:31]}  Rb1 {[%clk 0:00:36]} 48. Kh2 {[%clk 0:01:26]}  Rb2 {[%clk 0:00:29]} 49. Kg2 {[%clk 0:01:24]}  Rb1 {[%clk 0:00:28]} 50. Kh2 {[%clk 0:01:18]}  Rb2 {[%clk 0:00:28]} 51. Kg2 {[%clk 0:01:18]}  Rb1 {[%clk 0:00:28]} 1/2-1/2


[Site "https://www.chess.com"]